[Event "44th Chess Olympiad Women 2022"]
[Site "Chennai"]
[Date "2022.07.29"]
[Round "1.51"]
[White "San Diego, Marie Antoinette"]
[Black "O`Gorman, Alice"]
[Result "0-1"]
[ECO "C55"]
[WhiteElo "2101"]
[BlackElo "2043"]
[Annotator "TA"]
[PlyCount "48"]
[EventDate "2022.07.29"]
[EventType "team-tourn"]
[EventCountry "IND"]
[SourceTitle "playchess.com"]
[Source "ChessBase"]
[SourceQuality "1"]
[WhiteTeam "Philippines"]
[BlackTeam "Ireland"]
[WhiteTeamCountry "PHI"]
[BlackTeamCountry "IRL"]
[TimeControl "40/5400+30:1800+30"]

{[%evp 10,47,14,-176,-167,-164,-181,-177,-161,-193,-146,-285,-270,-272,-268,-293,-275,-501,-499,-489,-489,-566,-568,-698,-387,-794,-383,-1094,-1085,-1050,-1030,-1013,-551,-541,-539,-549,-527,-593,-575,-29999]} 1. e4 {[%emt 0:00:06]} e5 {[%emt 0:00:06]} 2. Nf3 {[%emt 0:00:07]} Nf6 {[%emt 0:00:06]} 3. Nc3 {[%emt 0:00:19]} Nc6 {[%emt 0:00:08]} 4. Bc4 {[%emt 0:00:15]} Nxe4 {[%emt 0:00:14]} 5. Nxe4 {[%emt 0:00:21]} d5 {[%emt 0:00:04]} 6. d3 $2 {[%emt 0:00:57]} (6. Bd3 $1 $11) 6... dxc4 $19 {[%emt 0:00:43] C55: Two Knights: 4 d3, 4 d4 exd4 5 e5 and Max Lange Attack.} 7. O-O {[%emt 0:00:33]} cxd3 {[%emt 0:00:45]} 8. cxd3 {[%emt 0:00:49]} Bg4 {[%emt 0:01:24] [#] Black is clearly better.} 9. Re1 $146 {[%emt 0:00:58][%cal Of3e5] [#] Threatens to win with Nxe5!} ({Predecessor:} 9. h3 Bh5 10. g4 Bg6 11. Bg5 f6 12. Bh4 Bxe4 13. dxe4 Be7 14. Qb3 b6 15. Rad1 {0-1 (54) Madlenak,M (1000)-Gay,L (1211) Lubovna 2020}) 9... Be7 {[%emt 0:02:37]} (9... Qd7 $19 10. h3 Bxf3 11. Qxf3 O-O-O) 10. Qb3 {[%emt 0:01:53]} (10. h3 $17 {was called for.} Bxf3 11. Qxf3) 10... Bxf3 {[%emt 0:01:05]} 11. gxf3 {[%emt 0:00:28]} Nd4 {[%emt 0:00:10][%csl LRb3,LRf3]} 12. Qa4+ {[%emt 0:01:38]} c6 {[%emt 0:01:29]} 13. Re3 {[%emt 0:00:52]} (13. Qd1 {was worth a try.}) 13... f5 {[%emt 0:02:23]} 14. Nd2 {[%emt 0:00:55]} O-O {[%emt 0:01:34]} 15. Rxe5 {[%emt 0:01:37]} Bg5 {[%emt 0:00:31]} 16. Kf1 {[%emt 0:02:04]} Bxd2 {[%emt 0:00:34]} 17. Bxd2 $2 {[%emt 0:00:31]} (17. Qc4+ Kh8 18. Bxd2) 17... Nxf3 {[%emt 0:00:25]} (17... b5 $142 18. Qa5 Qh4) 18. Qf4 {[%emt 0:02:10]} (18. Qc4+ Kh8 19. Bc3) 18... Nxe5 {[%emt 0:00:54]} 19. Qxe5 {[%emt 0:00:20]} Qxd3+ {[%emt 0:00:07]} 20. Qe2 {[%emt 0:00:31]} Qh3+ {[%emt 0:00:08]} 21. Kg1 {[%emt 0:00:17]} Rf6 {[%emt 0:00:15] ( -> ...Rg6+)} 22. Kh1 {[%emt 0:00:51]} Rd8 {[%emt 0:02:07][%cal Od8d2] White must now prevent ...Rxd2!} 23. Bg5 {[%emt 0:01:10] [#]} Rg6 {[%emt 0:03:39]} 24. Bxd8 {[%emt 0:00:13][%cal Re2e8]} (24. Rg1 Qd3) 24... Qg2# {[%emt 0:00:10] Black took control after the opening.  Weighted Error Value: White=1.56/Black=0.68} 0-1

[Event "44th Chess Olympiad Women 2022"]
[Site "Chennai"]
[Date "2022.07.29"]
[Round "1.52"]
[White "Foudzi, Siti Zulaikha"]
[Black "Nosimilo, Mkhonto"]
[Result "1-0"]
[ECO "C65"]
[WhiteElo "2188"]
[BlackElo "1313"]
[Annotator "TA"]
[PlyCount "74"]
[EventDate "2022.07.29"]
[EventType "team-tourn"]
[EventCountry "IND"]
[SourceTitle "playchess.com"]
[Source "ChessBase"]
[SourceQuality "1"]
[WhiteTeam "Malaysia"]
[BlackTeam "SWZ"]
[WhiteTeamCountry "MAS"]
[TimeControl "40/5400+30:1800+30"]

{[%evp 13,74,6,28,27,27,10,26,-32,12,-12,0,-17,-20,-14,160,40,98,79,85,81,83,93,114,115,131,113,136,125,127,127,132,124,136,118,163,171,163,173,206,166,166,166,228,223,237,235,454,453,474,465,522,469,781,740,822,799,798,766,808,808,782,779,29992]} 1. e4 {[%emt 0:00:04]} e5 {[%emt 0:00:03]} 2. Nf3 {[%emt 0:00:08]} Nc6 {[%emt 0:00:07]} 3. Bb5 {[%emt 0:00:06]} d6 {[%emt 0:00:35]} 4. h3 {[%emt 0:00:24]} Bd7 {[%emt 0:00:17]} 5. c3 {[%emt 0:00:29]} Nf6 {[%emt 0:00:21]} 6. Qe2 {[%emt 0:00:20]} Be7 {[%emt 0:00:48]} 7. O-O {[%emt 0:00:33]} O-O {[%emt 0:00:06]} (7... a6 $5 {[%cal Ra6b5]} 8. Ba4 O-O $11) 8. d4 {[%emt 0:01:27] C65: Ruy Lopez: Berlin Defence (3...Nf6), unusual lines and 4 0-0 Bc5.} a6 {[%emt 0:02:09]} 9. Bc4 {[%emt 0:00:59]} Qc8 {[%emt 0:04:18] [#]} 10. Kh2 $146 {[%emt 0:06:35]} (10. Re1 $11) ({Predecessor:} 10. Rd1 Na7 11. dxe5 dxe5 12. Nxe5 Bd6 13. Nxf7 Rxf7 14. e5 Be6 15. exd6 Bxc4 16. Qxc4 {1-0 (29) Miyoshi,E (2115)-Farias,S (1534) Sao Paulo 2013}) 10... Bd8 {[%emt 0:10:24]} (10... Re8 $5 {[%cal Re5d4]}) 11. Re1 {[%emt 0:03:22]} Re8 {[%emt 0:00:32]} 12. Nbd2 {[%emt 0:01:56]} b5 {[%emt 0:02:29]} 13. Bb3 {[%emt 0:00:07]} Nh5 $2 {[%emt 0:04:06] [#]} ({Black should play} 13... exd4 $11 14. cxd4 Na5) 14. Nf1 {[%emt 0:16:02]} (14. Nxe5 $1 $16 {[%mdl 512]} Nf4 15. Bxf7+ Kh8 {[#]} 16. Bxe8 $1 Bxe8 17. Nf7+ $1 Bxf7 18. Qf3) 14... Na5 {[%emt 0:07:33] [#]} ({Better is} 14... Nf6 $14) 15. Nxe5 $1 $16 {[%emt 0:06:48] Black is on the road to losing.} dxe5 {[%emt 0:05:51]} 16. Qxh5 {[%emt 0:00:08]} Nxb3 {[%emt 0:00:04]} 17. axb3 {[%emt 0:00:06]} Bf6 {[%emt 0:04:51]} 18. d5 {[%emt 0:07:32] White is more active.} (18. Bg5 {feels hotter.} Qd8 19. Bxf6 Qxf6 20. Kg1) 18... g6 {[%emt 0:09:43]} 19. Qe2 {[%emt 0:00:09]} c6 {[%emt 0:09:16]} 20. c4 {[%emt 0:01:10]} cxd5 {[%emt 0:03:14]} 21. cxd5 {[%emt 0:00:08]} Qc5 {[%emt 0:01:41]} 22. Be3 {[%emt 0:02:33]} Qb4 {[%emt 0:01:17][%csl LRb3,LRe4]} 23. Qd3 {[%emt 0:00:11]} Rec8 {[%emt 0:03:05]} 24. Rec1 {[%emt 0:02:51]} Rxc1 {[%emt 0:06:28]} 25. Rxc1 {[%emt 0:00:11]} ({Don't do} 25. Bxc1 $6 Qe1 $16) 25... Rc8 {[%emt 0:01:21]} 26. Ra1 {[%emt 0:02:42]} Ra8 {[%emt 0:02:45]} 27. Nd2 {[%emt 0:03:16][%cal Bf1d2,Bd2b3,Bb3c5][%mdl 32]} Qe7 {[%emt 0:04:12]} (27... a5 {is a better defense.} 28. Rc1 Qd6) 28. d6 $18 {[%emt 0:04:15]} Qf8 {[%emt 0:04:23]} 29. b4 {[%emt 0:00:17] Strongly threatening Nb3.} Kg7 $2 {[%emt 0:02:19]} (29... Be6 30. Rc1 h5) 30. Nb3 {[%emt 0:00:56] White is clearly winning.} Qe8 {[%emt 0:03:47]} 31. Nc5 {[%emt 0:00:09]} Qc8 {[%emt 0:01:37]} 32. Rc1 {[%emt 0:02:39]} Qd8 {[%emt 0:01:32]} (32... Kg8 $142 33. Nxd7 Qxd7) 33. Qd5 {[%emt 0:02:41]} Rc8 {[%emt 0:05:15]} 34. Nxd7 {[%emt 0:02:47]} Qxd7 {[%emt 0:00:12]} 35. Rxc8 {[%emt 0:00:05]} Qxc8 {[%emt 0:00:07]} 36. d7 {[%emt 0:00:07]} Qc7 {[%emt 0:01:11]} 37. Bc5 {[%emt 0:00:20] aiming for Bd6.} Kh6 {[%emt 0:01:39] Weighted Error Value: White=0.19 (very precise) /Black=0.41} 1-0

[Event "44th Chess Olympiad Women 2022"]
[Site "Chennai"]
[Date "2022.07.29"]
[Round "1.52"]
[White "Nomcebo, Sibisi"]
[Black "Azhar, Puteri Munajjah Az-Z"]
[Result "0-1"]
[WhiteElo "1225"]
[BlackElo "2018"]
[Annotator "TA"]
[PlyCount "47"]
[EventDate "2022.07.29"]
[EventType "team-tourn"]
[EventCountry "IND"]
[SourceTitle "playchess.com"]
[Source "ChessBase"]
[SourceQuality "1"]
[WhiteTeam "SWZ"]
[BlackTeam "Malaysia"]
[BlackTeamCountry "MAS"]
[TimeControl "40/5400+30:1800+30"]

{[%evp 19,20,21,27]} 1. d4 {[%emt 0:00:09]} Nf6 {[%emt 0:00:12]} 2. Nf3 {[%emt 0:00:21]} d6 {[%emt 0:00:23]} 3. g3 {[%emt 0:00:24]} g6 {[%emt 0:00:09]} 4. Bg2 {[%emt 0:00:09]} Bg7 {[%emt 0:00:05]} 5. O-O {[%emt 0:00:22]} O-O {[%emt 0:00:09]} 6. b3 {[%emt 0:00:15]} c6 {[%emt 0:00:27]} 7. Bb2 {[%emt 0:00:35]} Qc7 {[%emt 0:01:06]} 8. c4 {[%emt 0:01:02]} Nbd7 {[%emt 0:00:35]} 9. Nbd2 {[%emt 0:01:01]} Re8 {[%emt 0:04:24]} 10. Rc1 {[%emt 0:00:32]} e5 {[%emt 0:01:43][%mdl 32768] [#] Loss on time!?} {Predecessor:} 11. Re1 $146 {A49: 1 d4 Nf6 2 Nf3 g6 3 g3: Anti-King's Indian systems.} h6 12. e4 Nf8 13. c5 N6d7 14. cxd6 Qxd6 15. Nc4 Qc7 16. dxe5 Nxe5 17. Nfxe5 Bxe5 18. Nxe5 Rxe5 19. Qd4 f6 20. f4 Re6 21. Bf1 Rd6 22. Qc3 Kh7 23. e5 fxe5 24. Qxe5 {1-0 (24) Issani,N (2070)-Isha,S (2276) Chess.com INT 2020} 0-1

[Event "44th Chess Olympiad Women 2022"]
[Site "Chennai"]
[Date "2022.07.29"]
[Round "1.52"]
[White "Dlamini, Nosipho"]
[Black "Sim, Jia Ru"]
[Result "0-1"]
[WhiteElo "1081"]
[BlackElo "2005"]
[Annotator "TA"]
[PlyCount "28"]
[EventDate "2022.07.29"]
[EventType "team-tourn"]
[EventCountry "IND"]
[SourceTitle "playchess.com"]
[Source "ChessBase"]
[SourceQuality "1"]
[WhiteTeam "SWZ"]
[BlackTeam "Malaysia"]
[BlackTeamCountry "MAS"]
[TimeControl "40/5400+30:1800+30"]

{[%evp 11,13,-61,-74,-102]} 1. e4 {[%emt 0:00:07]} c5 {[%emt 0:00:09]} 2. Nf3 {[%emt 0:00:08]} e6 {[%emt 0:00:10]} 3. Nc3 {[%emt 0:00:18]} Nc6 {[%emt 0:00:12]} 4. Bb5 {[%emt 0:00:40]} Nd4 {[%emt 0:01:04]} 5. Nxd4 {[%emt 0:01:28]} cxd4 {[%emt 0:00:09]} 6. Ne2 {[%emt 0:00:45]} Qg5 $1 {[%emt 0:03:30][%csl LRb5,LRg2]} 7. Nxd4 {[%emt 0:05:17] [#] B30: Sicilian: 2...Nc6 3 Bb5, lines without ...g6.} {Predecessor:} Qc5 $146 8. c3 e5 9. Qa4 exd4 10. O-O a6 11. Be2 Nf6 12. Re1 Be7 13. cxd4 Qb4 14. Qxb4 Bxb4 {0-1 (27) Moiseenko,V (2541)-Grachev,B (2611) Tuapse 2021} 0-1

[Event "44th Chess Olympiad Women 2022"]
[Site "Chennai"]
[Date "2022.07.29"]
[Round "1.53"]
[White "Acham, Meritza"]
[Black "Petricenco, Ana"]
[Result "0-1"]
[ECO "D02"]
[WhiteElo "1397"]
[BlackElo "1912"]
[Annotator "TA"]
[PlyCount "88"]
[EventDate "2022.07.29"]
[EventType "team-tourn"]
[EventCountry "IND"]
[SourceTitle "playchess.com"]
[Source "ChessBase"]
[SourceQuality "1"]
[WhiteTeam "Mauritius"]
[BlackTeam "Moldova"]
[WhiteTeamCountry "MRI"]
[BlackTeamCountry "MDA"]
[TimeControl "40/5400+30:1800+30"]

{[%evp 12,88,-3,-15,-11,-20,0,0,0,-62,8,-22,7,-21,9,-89,-92,-105,-97,-98,-97,-116,-114,-108,-116,-120,-123,-109,-103,-175,-126,-248,-128,-136,-134,-146,-144,-214,-132,-170,-172,-167,-154,-631,-631,-660,-661,-660,-642,-599,-515,-514,-470,-503,-503,-497,-495,-489,-477,-703,-696,-681,-520,-1324,-1320,-1262,-1254,-1241,-924,-5196,-2663,-29957,-6435,-6808,-6412,-29973,-29973,-29982,-29983]} 1. d4 {[%emt 0:00:05]} d5 {[%emt 0:00:08]} 2. Bf4 {[%emt 0:00:12]} c5 {[%emt 0:01:02]} 3. e3 {[%emt 0:00:32]} Nc6 {[%emt 0:00:50]} 4. Nf3 {[%emt 0:00:51]} Nf6 {[%emt 0:01:14]} 5. c3 {[%emt 0:02:27]} Qb6 {[%emt 0:02:47]} 6. Qc1 {[%emt 0:02:36]} Bf5 {[%emt 0:01:33]} 7. Be2 {[%emt 0:02:40]} e6 {[%emt 0:01:07] D02: 1 d4 d5 2 Nf3 sidelines, including 2...Nf6 3 g3 and 2...Nf6 3 Bf4.} 8. Nh4 {[%emt 0:02:46]} Bg6 {[%emt 0:02:37]} 9. Nxg6 {[%emt 0:00:50]} hxg6 {[%emt 0:00:06] [#] The position is equal.} 10. O-O $146 {[%emt 0:06:00]} ({Better is} 10. h3 $11) ({Predecessor:} 10. h3 Be7 11. Nd2 cxd4 12. exd4 Rc8 13. Nf3 Ne4 14. O-O g5 15. Bh2 Bf6 16. Rd1 {0-1 (30) Motorin,A (1907)-Denishev,M (2028) Obninsk 2009}) 10... Rc8 {[%emt 0:11:14]} (10... g5 $1 $15 11. Bxg5 Bd6) 11. Nd2 {[%emt 0:07:07]} Be7 {[%emt 0:07:01][%cal Rc5d4]} 12. Rb1 {[%emt 0:30:49]} Qd8 {[%emt 0:15:34]} 13. Qc2 {[%emt 0:00:14]} (13. dxc5 $11 {remains equal.} Bxc5 14. h3) 13... cxd4 $1 $17 {[%emt 0:02:49]} 14. exd4 {[%emt 0:03:48] [#]} Nxd4 {[%emt 0:05:07][%mdl 512]} 15. Qa4+ {[%emt 0:00:23]} Nc6 {[%emt 0:00:08]} 16. Bb5 {[%emt 0:00:41]} a6 {[%emt 0:03:25]} 17. Bxc6+ {[%emt 0:03:52]} Rxc6 {[%emt 0:00:05]} 18. Nf3 {[%emt 0:05:03]} b5 {[%emt 0:04:39]} 19. Qc2 {[%emt 0:03:00]} Rc4 {[%emt 0:04:21]} 20. Be3 {[%emt 0:07:01]} (20. Be5 $17 {is a better defense.}) 20... Bd6 {[%emt 0:04:23]} (20... Ng4 $1 $19 {[%cal Rg4h2] Hoping for ...Nxh2!} 21. h3 Nxe3 22. fxe3 O-O) 21. Bd4 {[%emt 0:03:00] [#]} (21. h3 $17) 21... Qb8 {[%emt 0:05:32]} (21... Bxh2+ $1 $19 {[%mdl 512]} 22. Nxh2 Qc7) 22. g3 {[%emt 0:02:05]} O-O {[%emt 0:08:04]} 23. Rbe1 {[%emt 0:03:01] Prevents e5.} Ne4 {[%emt 0:04:58]} 24. Nh4 {[%emt 0:02:50]} (24. Qd3 $17) 24... Ng5 {[%emt 0:04:12]} 25. f4 {[%emt 0:02:26]} Ne4 {[%emt 0:02:33]} 26. Nf3 {[%emt 0:02:51]} Rfc8 {[%emt 0:02:11]} 27. Nd2 $2 {[%emt 0:02:08] This move loses the game for White.} (27. Qd3 $17) 27... Rxd4 $19 {[%emt 0:01:11]} 28. Nxe4 {[%emt 0:02:48]} Rxe4 {[%emt 0:00:10]} 29. Rxe4 {[%emt 0:00:05]} dxe4 {[%emt 0:00:06]} 30. Qxe4 {[%emt 0:00:07]} Qb6+ {[%emt 0:00:24]} 31. Kg2 {[%emt 0:00:32]} Qc6 {[%emt 0:00:16]} 32. Re1 {[%emt 0:00:32]} Qxe4+ {[%emt 0:01:22]} 33. Rxe4 {[%emt 0:00:15][%mdl 4096] Endgame KRB-KR} Kf8 {[%emt 0:00:04]} 34. Kf3 {[%emt 0:00:31]} Ke7 {[%emt 0:00:14]} 35. a4 {[%emt 0:01:23]} (35. Re1 $142) 35... Rc4 {[%emt 0:01:14]} 36. axb5 {[%emt 0:00:28]} axb5 {[%emt 0:00:04] Strongly threatening ...Rxe4.} 37. Ke3 {[%emt 0:00:33]} (37. Re3 $142) 37... Bc5+ {[%emt 0:00:31]} 38. Kd3 {[%emt 0:00:31]} Rxe4 {[%emt 0:00:09]} 39. Kxe4 {[%emt 0:00:14] KB-KP} Kd6 {[%emt 0:01:27]} 40. g4 {[%emt 0:01:50]} f5+ {[%emt 0:00:27]} 41. Kf3 {[%emt 0:30:35]} Kd5 {[%emt 0:30:16]} 42. b3 {[%emt 0:00:23]} Bb6 {[%emt 0:00:17] ( -> ...Ba5)} 43. h3 {[%emt 0:00:49]} Ba5 {[%emt 0:00:07]} 44. b4 {[%emt 0:00:43]} Bc7 {[%emt 0:00:04] Weighted Error Value: White=0.92/Black=0.25 (precise)} 0-1

[Event "44th Chess Olympiad Women 2022"]
[Site "Chennai"]
[Date "2022.07.29"]
[Round "1.54"]
[White "Avila Fraire, Ameyalli"]
[Black "Johnson, Nellisha"]
[Result "1-0"]
[ECO "C45"]
[WhiteElo "1907"]
[BlackElo "1093"]
[Annotator "TA"]
[PlyCount "75"]
[EventDate "2022.07.29"]
[EventType "team-tourn"]
[EventCountry "IND"]
[SourceTitle "playchess.com"]
[Source "ChessBase"]
[SourceQuality "1"]
[WhiteTeam "Mexico"]
[BlackTeam "Guyana"]
[WhiteTeamCountry "MEX"]
[BlackTeamCountry "GUY"]
[TimeControl "40/5400+30:1800+30"]

{[%evp 15,74,64,63,50,110,102,120,127,140,146,227,217,345,313,390,356,528,508,786,822,787,774,1175,1083,29987,29988,29993,29989,29989,29988,29988,2809,2645,2630,2383,2302,3039,2945,29989,29986,29986,29987,29989,29990,29989,29990,29990,29990,29990,29991,29991,29991,29991,29992,29992,29993,29993,29994,29998,29999,29999]} 1. e4 {[%emt 0:00:04]} e5 {[%emt 0:00:08]} 2. Nf3 {[%emt 0:00:09]} Nc6 {[%emt 0:00:13]} 3. d4 {[%emt 0:00:08]} exd4 {[%emt 0:00:38]} 4. Nxd4 {[%emt 0:00:19]} Nxd4 {[%emt 0:00:49]} 5. Qxd4 {[%emt 0:00:12]} d6 {[%emt 0:00:22]} 6. Nc3 {[%emt 0:00:39]} Nf6 {[%emt 0:01:52]} 7. Bg5 {[%emt 0:01:10]} Be7 {[%emt 0:00:39]} 8. O-O-O {[%emt 0:01:28]} O-O {[%emt 0:00:50]} 9. h4 {[%emt 0:02:46] [#] C45: Scotch Game.} h5 $146 {[%emt 0:02:44]} ({Black should play} 9... h6 $14) ({Predecessor:} 9... b6 10. Kb1 c5 11. Qd2 Bb7 12. f3 h6 13. Bf4 Ne8 14. Bc4 Qd7 15. g4 Rd8 16. g5 h5 17. g6 Nf6 18. Rhg1 Kh8 19. gxf7 Nh7 20. Qg2 Bf6 21. e5 Bxh4 22. Qxg7# {1-0 (22) Zakrzewski,B (1578)-Lesien,C (1063) Poznan 2021}) 10. Be2 {[%emt 0:02:17]} Bg4 {[%emt 0:02:35]} 11. f3 {[%emt 0:03:36] White is much more active. The black rooks are badly placed. White is better.} Be6 {[%emt 0:00:49]} 12. g4 {[%emt 0:08:40]} c5 {[%emt 0:10:44]} (12... hxg4 $16 13. f4 a6) 13. Qe3 $18 {[%emt 0:08:54] aiming for gxh5.} a6 {[%emt 0:09:11]} (13... hxg4 $142 14. e5 Ne8) 14. gxh5 {[%emt 0:13:53]} ({Much less strong is} 14. e5 Nd7 15. exd6 Bf6 16. Bxf6 (16. gxh5 Bd4 $18) 16... Qxf6 17. gxh5 Rfe8 $18) 14... Nxh5 {[%emt 0:02:29]} 15. Rdg1 {[%emt 0:10:51]} f6 {[%emt 0:02:41]} (15... Bf6 {keeps fighting.} 16. f4 Bd4) 16. Bh6 {[%emt 0:00:28] And now f4 would win.} Rf7 {[%emt 0:03:27]} (16... Kh7 $142 17. f4 f5 18. Bxh5 gxh6 19. Bg6+ (19. Qg3 Rg8 $16) 19... Kh8 20. Bxf5 Rxf5) 17. f4 {[%emt 0:00:21]} Nxf4 {[%emt 0:04:24]} 18. Qxf4 {[%emt 0:00:27]} Kh7 {[%emt 0:02:22]} 19. Bh5 {[%emt 0:02:27][%cal Oh6g7,Be2h5,Bh5g6,Bg6f5,Bf5e6][%mdl 32] White wants to mate with Bxg7!} gxh6 {[%emt 0:03:27]} 20. Bg6+ {[%emt 0:00:13][%mdl 64] Deflection} Kg8 {[%emt 0:01:38]} 21. Bf5+ {[%emt 0:00:32]} Kf8 {[%emt 0:02:50]} 22. Bxe6 {[%emt 0:00:52]} Ke8 {[%emt 0:04:21]} 23. Qxh6 {[%emt 0:03:39]} (23. Qf5 $142 Bf8 24. Nd5 Qe7 25. Nxe7 Kxe7 26. Bxf7 Kd8 27. Bd5 Rc8 28. Rg8) 23... Bf8 {[%emt 0:01:19]} 24. Qh5 {[%emt 0:02:22][%csl Ge6][%cal Rh5f7]} Qe7 {[%emt 0:01:57] [#]} 25. Nd5 $1 {[%emt 0:00:42][%cal Bc3d5,Bd5f6,Bf6g8][%mdl 32]} Bh6+ {[%emt 0:11:00]} (25... Qxe6 26. Nc7+) 26. Kb1 {[%emt 0:01:22]} Qf8 {[%emt 0:03:59] [#] Prevents Rg8.} 27. Rg8 $3 {[%emt 0:00:46][%mdl 512] White mates.} Qxg8 {[%emt 0:02:07]} 28. Nxf6+ {[%emt 0:00:12]} Ke7 {[%emt 0:01:25]} 29. Nxg8+ {[%emt 0:00:09]} Kxe6 {[%emt 0:00:41]} 30. Qd5+ {[%emt 0:02:42]} Kd7 {[%emt 0:01:48]} 31. Qxf7+ {[%emt 0:00:07]} Kc6 {[%emt 0:00:21]} 32. Qd5+ {[%emt 0:00:42]} Kc7 {[%emt 0:01:33]} 33. Rf1 {[%emt 0:00:12]} Rf8 {[%emt 0:04:07]} 34. Rxf8 {[%emt 0:00:46]} Bxf8 {[%emt 0:00:13]} 35. Nf6 {[%emt 0:01:11]} Be7 {[%emt 0:00:43]} 36. Qf7 {[%emt 0:00:13]} Kd8 {[%emt 0:01:02]} 37. Qe8+ {[%emt 0:00:10]} Kc7 {[%emt 0:00:23]} 38. Nd5# {[%emt 0:00:07] Black got outplayed after the opening.  Weighted Error Value: White=0.05 (flawless) /Black=0.96} 1-0

[Event "44th Chess Olympiad Women 2022"]
[Site "Chennai"]
[Date "2022.07.29"]
[Round "1.54"]
[White "Shariff, Sasha Christina"]
[Black "Guillen Cristobal, Sandra N"]
[Result "0-1"]
[ECO "B38"]
[WhiteElo "1183"]
[BlackElo "1962"]
[Annotator "TA"]
[PlyCount "86"]
[EventDate "2022.07.29"]
[EventType "team-tourn"]
[EventCountry "IND"]
[SourceTitle "playchess.com"]
[Source "ChessBase"]
[SourceQuality "1"]
[WhiteTeam "Guyana"]
[BlackTeam "Mexico"]
[WhiteTeamCountry "GUY"]
[BlackTeamCountry "MEX"]
[TimeControl "40/5400+30:1800+30"]

{[%evp 17,86,39,48,39,78,-44,-41,-85,-74,-85,-95,-101,-99,-112,-104,-128,-71,-143,-67,-151,-145,-147,-160,-145,-102,-191,-96,-110,-97,-360,-121,-145,-93,-109,-104,-153,-159,-161,-158,-170,-168,-178,-181,-197,-198,-197,-190,-223,-193,-237,-185,-254,-247,-426,-426,-535,-526,-606,-611,-778,-764,-796,-788,-1630,-1601,-1726,-1613,-29979,-29980,-29981,-29981]} 1. e4 {[%emt 0:00:03]} c5 {[%emt 0:00:08]} 2. Nf3 {[%emt 0:00:09]} Nc6 {[%emt 0:00:20]} 3. d4 {[%emt 0:00:13]} cxd4 {[%emt 0:00:09]} 4. Nxd4 {[%emt 0:00:04]} g6 {[%emt 0:00:22]} 5. c4 {[%emt 0:00:10]} Bg7 {[%emt 0:00:10]} 6. Be3 {[%emt 0:00:15]} Nf6 {[%emt 0:00:11]} 7. Nc3 {[%emt 0:00:19]} d6 {[%emt 0:00:20]} 8. Be2 {[%emt 0:00:29]} O-O {[%emt 0:01:23]} 9. O-O {[%emt 0:01:52]} Bd7 {[%emt 0:00:11]} 10. b3 {[%emt 0:06:22] B38: Sicilian: Maroczy Bind with 5...Bg7 and 7...0-0.} a5 {[%emt 0:00:38][%cal Oa5a4] [#]} 11. Nd5 $146 {[%emt 0:01:03]} (11. Ndb5 $16) ({Predecessor:} 11. Rc1 Nxd4 12. Bxd4 Bc6 13. f3 Nd7 14. Bxg7 Kxg7 15. Nd5 Bxd5 16. exd5 Qb6+ 17. Kh1 a4 18. bxa4 Nc5 19. Qd4+ Kg8 20. Rb1 Qc7 21. f4 Rxa4 {0-1 (37) Ichimura G Barbosa,L (2007)-Samani,Y (2246) Chess.com INT 2021}) 11... Nxe4 $15 {[%emt 0:00:24] Hoping for ...e6.} 12. f3 {[%emt 0:00:59] Black is slightly better.} Nf6 {[%emt 0:00:14]} 13. Nxf6+ {[%emt 0:01:32]} Bxf6 {[%emt 0:00:10]} 14. Rb1 {[%emt 0:07:57]} Qb6 {[%emt 0:05:19]} 15. Nc2 {[%emt 0:04:35]} Qc7 {[%emt 0:00:14] Black is more active.} 16. Qd2 {[%emt 0:14:56]} Rfc8 {[%emt 0:02:41]} (16... Bf5 $142 $1 {[%cal Oc6b4] Strongly threatening ...Nb4!} 17. Rbc1 a4) 17. Bg5 {[%emt 0:02:23]} ({Better is} 17. Bf2) 17... Bh8 {[%emt 0:02:20]} ({Black should try} 17... Bxg5 $17 18. Qxg5 Bf5) 18. h4 {[%emt 0:16:05]} (18. Ne3 $15) 18... Bf5 $17 {[%emt 0:02:20][%cal Oc6b4]} 19. Bd3 {[%emt 0:01:41]} Bxd3 {[%emt 0:01:58]} 20. Qxd3 {[%emt 0:01:31]} Ne5 {[%emt 0:01:38]} 21. Qe4 {[%emt 0:02:26]} (21. Qd2 $17) 21... e6 {[%emt 0:02:22]} (21... b5 $1 $19 {[%cal Rb5c4]} 22. f4 Qc5+ 23. Kh1 Ng4) 22. Nd4 {[%emt 0:11:29]} Qc5 {[%emt 0:06:25]} 23. Be3 $2 {[%emt 0:09:25][%mdl 8192] [#]} (23. Rfd1 $17) 23... f5 $2 {[%emt 0:07:08]} (23... d5 $1 $19 {[%cal Rd5e4]} 24. Qc2 {[#]} Nxc4 $1 {[%mdl 512]} 25. bxc4 Bxd4 26. Bxd4 Qxd4+ 27. Qf2 Rxc4 28. Qxd4 Rxd4) 24. Qxb7 {[%emt 0:04:20][%cal Od4f5] Threatens to win with Nxf5!} Nxf3+ {[%emt 0:01:21]} 25. Qxf3 {[%emt 0:02:17]} Bxd4 {[%emt 0:00:02]} 26. Bxd4 {[%emt 0:00:40]} (26. Rbe1 $142) 26... Qxd4+ {[%emt 0:00:09]} 27. Qf2 {[%emt 0:00:14]} Qxf2+ {[%emt 0:04:16]} 28. Rxf2 $19 {[%emt 0:00:08][%mdl 4096] Endgame KRR-KRR} Kf7 {[%emt 0:00:25]} 29. Rd2 {[%emt 0:00:36]} Ra6 {[%emt 0:00:52]} 30. Rc1 {[%emt 0:02:54]} Ke7 {[%emt 0:02:21]} 31. Kf2 {[%emt 0:00:49]} Rb6 {[%emt 0:00:15]} 32. Rb2 {[%emt 0:01:45]} Rbc6 {[%emt 0:01:41]} 33. Rbc2 {[%emt 0:01:19]} Rb8 {[%emt 0:00:53]} 34. Rb1 {[%emt 0:03:12]} (34. Rc3 {was necessary.}) 34... d5 {[%emt 0:00:16][%cal Bd6d5,Bd5d4][%mdl 32]} 35. c5 $2 {[%emt 0:00:14]} (35. Rd1 {was called for.}) 35... Rb5 {[%emt 0:00:35]} 36. Rbc1 {[%emt 0:00:42]} e5 {[%emt 0:00:23]} 37. g3 {[%emt 0:00:48]} Ke6 {[%emt 0:00:07]} 38. Kf3 {[%emt 0:00:16]} d4 {[%emt 0:00:22]} 39. Rc4 {[%emt 0:01:24]} Kd5 {[%emt 0:00:18]} 40. R4c2 {[%emt 0:01:08]} Rbxc5 {[%emt 0:00:40]} 41. Rxc5+ {[%emt 0:30:29]} Rxc5 {[%emt 0:30:06]} 42. Rxc5+ {[%emt 0:00:24]} Kxc5 {[%emt 0:00:07]} 43. a3 {[%emt 0:00:31]} h5 {[%emt 0:01:27] Weighted Error Value: White=0.91/Black=0.23 (precise)} 0-1